bitfinex-derivatives/quotes_BTCF0:USTF0_20210706
["timestamp","ask_amount","ask_price","bid_price","bid_amount"]
[1625554259148,2.33017943,34655.0,34654.0,0.29957544]
[1625554259399,2.33017943,34655.0,34654.0,0.24057544]
[1625554259500,3.65161713,34655.0,34654.0,0.24057544]
[1625554259850,4.64271845,34655.0,34654.0,0.24057544]
[1625554260151,4.64271845,34655.0,34654.0,0.29957544]
[1625554260503,4.64271845,34655.0,34654.0,0.35857544]
[1625554260955,3.32128075,34655.0,34654.0,0.35857544]
[1625554269781,4.64491311,34655.0,34654.0,0.4439403]
[1625554270931,3.32128075,34655.0,34654.0,0.4439403]
[1625554271480,4.64490801,34655.0,34654.0,0.4439403]
[1625554271981,4.64490801,34655.0,34654.0,0.61472249]
[1625554272785,4.64490801,34655.0,34654.0,0.88350248]
[1625554272985,1.17290846,34655.0,34654.0,2.8473379]
[1625554273083,1.15869601,34655.0,34654.0,2.8473379]
[1625554273384,0.24894448,34655.0,34654.0,5.40871564]
[1625554274035,0.26315515,34655.0,34654.0,5.40871564]
[1625554274337,3.32541533,34655.0,34654.0,1.13965908]
[1625554274438,3.32541533,34655.0,34654.0,0.87442908]
[1625554274537,3.32541533,34655.0,34654.0,0.87087909]
[1625554275189,3.60399533,34655.0,34654.0,0.81187909]
[1625554275691,4.92693588,34655.0,34654.0,0.29957544]
[1625554278099,4.92693588,34655.0,34654.0,0.38502128]
[1625554278902,4.92693588,34655.0,34654.0,0.55599754]
[1625554279704,4.92693588,34655.0,34654.0,0.4705517]
[1625554280205,4.92693588,34655.0,34654.0,0.5560422]
[1625554281508,4.92693588,34655.0,34654.0,0.4705517]
[1625554283365,4.92693588,34655.0,34654.0,0.5561517]
[1625554283868,4.92693588,34655.0,34654.0,0.4705517]
[1625554286070,4.92693588,34655.0,34654.0,0.47410132]
[1625554286373,4.92693588,34655.0,34654.0,0.81623703]
[1625554286673,4.92693588,34655.0,34654.0,1.50036732]
[1625554287078,4.92693588,34655.0,34654.0,1.55936732]
[1625554287177,4.64835588,34655.0,34654.0,1.79002732]
[1625554287728,3.32541533,34655.0,34654.0,2.81617953]
[1625554288328,4.65266263,34655.0,34654.0,2.81617953]
[1625554288680,2.16655991,34655.0,34654.0,4.01329392]
[1625554289181,2.16655991,34655.0,34654.0,5.38142334]
[1625554289882,2.16655991,34655.0,34654.0,4.01329392]
[1625554294950,3.3297698,34655.0,34654.0,4.01329392]
[1625554297455,2.16655991,34655.0,34654.0,4.01329392]
[1625554297856,3.33002664,34655.0,34654.0,4.01329392]
[1625554301417,2.16655991,34655.0,34654.0,4.01329392]
[1625554303369,3.33038745,34655.0,34654.0,4.01329392]
[1625554309737,2.16655991,34655.0,34654.0,5.3817101]
[1625554312190,2.15234924,34655.0,34654.0,5.3817101]
[1625554312545,0.49674691,34655.0,34654.0,5.3817101]
[1625554312947,0.16683913,34655.0,34654.0,6.9209711]
[1625554313551,0.16683913,34655.0,34654.0,7.4209711]
[1625554313742,0.25035373,34656.0,34654.0,7.4209711]
[1625554313846,0.20985373,34656.0,34654.0,7.4209711]
[1625554314043,0.20985373,34656.0,34655.0,0.00354634]
[1625554314144,0.20985373,34656.0,34655.0,0.12154634]
[1625554314245,0.001,34657.0,34655.0,6.947857]
[1625554314445,0.001,34657.0,34656.0,0.24057544]
[1625554314546,0.001,34657.0,34656.0,0.85857544]
[1625554314645,0.001,34657.0,34656.0,0.86212172]
[1625554314744,0.001,34657.0,34656.0,7.1883129]
[1625554317902,0.001,34657.0,34656.0,6.6883129]
[1625554318255,0.16795002,34658.0,34656.0,6.6883129]
[1625554318353,0.001,34658.0,34656.0,1.90092498]
[1625554318504,0.001,34658.0,34657.0,0.24057544]
[1625554318604,0.001,34658.0,34657.0,0.36212175]
[1625554318703,0.16777612,34658.0,34657.0,5.14659263]
[1625554322370,0.001,34658.0,34657.0,5.14659263]
[1625554323071,0.16773953,34658.0,34657.0,5.14659263]
[1625554323571,0.001,34658.0,34657.0,5.14659263]
[1625554324125,0.16762365,34658.0,34657.0,5.14659263]
[1625554324780,1.16402177,34658.0,34657.0,3.77960095]
[1625554325582,2.1597723,34658.0,34657.0,3.77605464]
[1625554325682,2.1597723,34658.0,34657.0,2.57993692]
[1625554325882,2.1739899,34658.0,34657.0,2.57993692]
[1625554326533,2.1739899,34658.0,34657.0,2.52093692]
[1625554326938,4.66091751,34658.0,34657.0,0.47040272]
[1625554327286,4.65991751,34658.0,34657.0,0.41140272]
[1625554327387,4.65991751,34658.0,34657.0,0.29957544]
[1625554328590,4.65991751,34658.0,34657.0,0.47041161]
[1625554328895,4.65991751,34658.0,34657.0,0.29957544]
[1625554328991,4.65991751,34658.0,34657.0,0.35857544]
[1625554329291,4.65991751,34658.0,34657.0,0.87106284]
[1625554329292,3.33356717,34658.0,34657.0,0.87106284]
[1625554329645,3.33356717,34658.0,34657.0,1.55440368]
[1625554329791,3.33356717,34658.0,34657.0,1.64090368]
[1625554329892,3.33356717,34658.0,34657.0,1.55440368]
[1625554330442,3.33356717,34658.0,34657.0,0.87106284]
[1625554330792,3.33356717,34658.0,34657.0,1.55442069]
[1625554331148,3.33356717,34658.0,34657.0,0.87106284]
[1625554331647,3.33356717,34658.0,34657.0,1.55444121]
[1625554331748,3.33356717,34658.0,34657.0,1.49544121]
[1625554332247,3.33356717,34658.0,34657.0,1.55444121]
[1625554332449,3.33356717,34658.0,34657.0,0.87106284]
[1625554332899,3.33356717,34658.0,34657.0,2.57949874]
[1625554334201,3.33356717,34658.0,34657.0,1.5544372]
[1625554335559,3.33356717,34658.0,34657.0,2.57958279]
[1625554336207,3.33356717,34658.0,34657.0,1.5544372]
[1625554337008,3.33356717,34658.0,34657.0,2.57968673]
[1625554339109,3.33356717,34658.0,34657.0,2.87501673]
[1625554339762,3.33356717,34658.0,34657.0,2.87854781]
[1625554340062,2.1729899,34658.0,34657.0,4.07137186]
[1625554340362,2.1729899,34658.0,34657.0,4.07490294]
[1625554340563,2.1729899,34658.0,34657.0,4.07137186]
[1625554341415,2.1729899,34658.0,34657.0,4.07490299]
[1625554341917,2.1729899,34658.0,34657.0,4.07137186]
[1625554342219,2.1729899,34658.0,34657.0,3.77604186]
[1625554342672,3.33858924,34658.0,34657.0,2.57968673]
[1625554343120,4.67054321,34658.0,34657.0,2.57968673]
[1625554349534,4.67054321,34658.0,34657.0,2.5832172]
[1625554351037,4.67054321,34658.0,34657.0,3.78038261]
[1625554351038,3.33858924,34658.0,34657.0,3.78038261]
[1625554352491,3.33858924,34658.0,34657.0,4.11000261]
[1625554353195,0.49846163,34658.0,34657.0,5.47799935]
[1625554353395,0.66732378,34659.0,34657.0,5.47799935]
[1625554353396,0.09498541,34659.0,34658.0,0.118]
[1625554353495,1.00190228,34660.0,34658.0,0.059]
[1625554353596,0.50130228,34660.0,34659.0,0.059]
[1625554353699,0.38330228,34660.0,34658.0,0.5]
[1625554353793,0.38330228,34660.0,34658.0,0.56252888]
[1625554353894,0.16709077,34660.0,34658.0,0.62152888]
[1625554353999,0.16709077,34660.0,34659.0,0.00353075]
[1625554354196,0.16709077,34660.0,34659.0,0.12153075]
[1625554354298,0.001,34660.0,34659.0,6.43443497]
[1625554354646,0.001,34660.0,34659.0,6.52053497]
[1625554354747,0.001,34660.0,34659.0,6.76111041]
[1625554355448,0.002,34665.0,34663.0,0.058]
[1625554355546,0.002,34665.0,34663.0,0.117]
[1625554355650,0.002,34665.0,34664.0,0.5]
[1625554355747,0.002,34665.0,34664.0,0.84551]
[1625554355947,0.002,34665.0,34664.0,4.94862605]
[1625554356600,0.002,34665.0,34664.0,5.03552605]
[1625554356799,1.17466975,34675.0,34664.0,5.51667693]
[1625554357202,1.17466975,34675.0,34665.0,0.00352973]
[1625554357299,0.002,34668.0,34665.0,0.00352973]
[1625554357399,0.002,34668.0,34665.0,0.12152973]
[1625554357503,0.002,34668.0,34666.0,0.5]
[1625554357604,0.003,34673.0,34668.0,0.057]
[1625554357799,0.003,34673.0,34668.0,0.116]
[1625554357902,0.003,34673.0,34669.0,0.5]
[1625554357998,0.003,34673.0,34669.0,0.56252949]
[1625554358101,0.003,34673.0,34669.0,0.62152949]
[1625554358252,0.003,34673.0,34670.0,0.00352934]
[1625554358350,0.003,34673.0,34672.0,4.09495625]
[1625554358451,0.003,34673.0,34672.0,4.95391625]
[1625554358752,0.003,34673.0,34672.0,5.67564257]
[1625554359805,0.004,34678.0,34672.0,5.67564257]
[1625554359905,0.004,34678.0,34672.0,5.6791713]
[1625554360006,0.004,34678.0,34672.0,5.7106713]
[1625554360157,0.004,34678.0,34672.0,5.70714257]
[1625554360257,0.003,34673.0,34672.0,5.70714257]
[1625554360358,0.003,34673.0,34672.0,1.61218632]
[1625554360708,0.003,34673.0,34672.0,5.46731489]
[1625554361007,0.003,34673.0,34672.0,5.46378632]
[1625554361209,0.003,34673.0,34672.0,6.8245578]
[1625554361309,0.003,34673.0,34672.0,9.54610077]
[1625554364719,0.003,34673.0,34672.0,8.01523285]
[1625554366271,0.001,34676.0,34672.0,8.01523285]
[1625554366823,0.001,34676.0,34674.0,1.18807803]
[1625554366923,0.001,34676.0,34675.0,0.24057544]
[1625554367123,0.001,34676.0,34675.0,0.35857544]
[1625554368927,0.001,34676.0,34675.0,0.85857544]
[1625554372386,0.001,34676.0,34675.0,0.35857544]
[1625554377599,0.001,34676.0,34675.0,0.69751937]
[1625554377700,0.0877,34676.0,34675.0,0.69751937]
[1625554378301,0.0867,34676.0,34675.0,0.69751937]
[1625554378651,0.001,34679.0,34675.0,0.69751937]
[1625554379051,0.001,34679.0,34678.0,0.48115088]
[1625554379154,0.001,34679.0,34678.0,0.54015088]
[1625554379254,0.001,34679.0,34678.0,0.59915088]
[1625554384959,0.01530938,34679.0,34678.0,0.60267585]
[1625554387365,0.01430938,34679.0,34678.0,0.60267585]
[1625554387915,0.01430928,34681.0,34678.0,0.60267585]
[1625554388117,0.01430925,34679.0,34678.0,0.60267585]
[1625554388367,0.0143092,34681.0,34678.0,0.60267585]
[1625554388666,0.0143092,34681.0,34679.0,0.00352536]
[1625554388767,0.0143092,34681.0,34679.0,0.06252536]
[1625554388867,0.0143092,34681.0,34679.0,0.12152536]
[1625554389218,0.0143092,34681.0,34680.0,0.2441008]
[1625554389321,0.0143092,34681.0,34680.0,0.3031008]
[1625554389419,0.0143092,34681.0,34680.0,0.3621008]
[1625554391573,0.0143092,34681.0,34680.0,0.4484008]
[1625554391674,0.0143092,34681.0,34680.0,0.7935508]
[1625554391922,0.0143092,34681.0,34680.0,0.7072508]
[1625554392927,0.0143092,34681.0,34680.0,0.7928508]
[1625554396587,0.0143096,34683.0,34680.0,0.7928508]
[1625554396888,0.0143096,34683.0,34681.0,0.00352505]
[1625554396991,0.0143096,34683.0,34681.0,0.12152505]
[1625554397192,0.0143096,34683.0,34682.0,4.23987544]
[1625554397392,0.0143096,34683.0,34682.0,4.30240027]
[1625554405714,0.33535878,34685.0,34682.0,4.30240027]
[1625554405715,0.01430605,34684.0,34682.0,4.30240027]
[1625554406016,0.01430605,34684.0,34683.0,0.0035261]
[1625554406119,0.35007651,34684.0,34683.0,0.0035261]
[1625554406218,0.35007651,34684.0,34683.0,0.0625261]
[1625554407219,0.35007651,34684.0,34683.0,0.30310154]
[1625554407719,0.01430605,34684.0,34683.0,0.30310154]
[1625554408170,0.01430605,34685.0,34683.0,0.30310154]
[1625554408370,0.01430607,34684.0,34683.0,0.30310154]
[1625554408621,0.01430616,34685.0,34683.0,0.30310154]
[1625554408973,1.0080157,34684.0,34683.0,0.30310154]
[1625554409073,1.2722757,34684.0,34683.0,0.30310154]
[1625554409173,1.2722757,34684.0,34683.0,0.29957544]
[1625554409373,1.2865818,34684.0,34683.0,0.30310158]
[1625554409475,0.2785661,34684.0,34683.0,0.30310158]
[1625554410427,0.2785661,34684.0,34683.0,0.64355526]
[1625554411174,1.28829092,34684.0,34683.0,0.30310158]
[1625554411577,1.28829092,34684.0,34683.0,0.64402471]
[1625554412582,0.2785661,34684.0,34683.0,0.30310158]
[1625554412681,0.0143061,34684.0,34683.0,0.30310158]
[1625554413085,3.54042322,34684.0,34683.0,1.32807881]
[1625554413232,3.80300322,34684.0,34683.0,1.32807881]
[1625554413383,3.81730934,34684.0,34683.0,1.32807881]
[1625554413734,4.49129624,34684.0,34683.0,2.01139368]
[1625554414840,4.49129624,34684.0,34683.0,3.20829688]
[1625554415137,0.27688612,34684.0,34683.0,0.30310158]
[1625554415538,0.27688612,34684.0,34683.0,3.20997842]
[1625554415539,4.4922397,34684.0,34683.0,3.20997842]
[1625554421360,4.4922397,34684.0,34683.0,4.57904365]
[1625554425367,4.4922397,34684.0,34683.0,3.20997842]
[1625554433537,6.01451388,34684.0,34683.0,3.20997842]
[1625554439199,6.01451388,34684.0,34683.0,3.15097842]
[1625554440247,6.01451388,34684.0,34683.0,3.20997842]
[1625554440898,6.01451388,34684.0,34683.0,3.26897842]
[1625554441001,5.75193388,34684.0,34683.0,3.26897842]
[1625554441301,4.2296597,34684.0,34683.0,4.63832191]
[1625554441400,4.2296597,34684.0,34683.0,5.13832191]
[1625554441600,4.21535358,34684.0,34683.0,5.13832191]
[1625554441803,4.06252493,34684.0,34683.0,5.13832191]
[1625554442153,1.52455171,34687.0,34683.0,5.13832191]
[1625554442154,0.33939348,34685.0,34683.0,8.38990589]
[1625554442353,0.13939348,34685.0,34683.0,8.38990589]
[1625554442453,0.09909348,34685.0,34683.0,8.38990589]
[1625554442555,0.09909348,34685.0,34684.0,0.00352307]
[1625554442655,0.09909348,34685.0,34684.0,0.12152307]
[1625554442755,0.001,34687.0,34684.0,7.46654742]
[1625554443056,0.001,34687.0,34686.0,6.84518838]
[1625554443157,0.001,34687.0,34686.0,7.24121838]
[1625554443257,0.001,34687.0,34686.0,7.30021838]
[1625554443354,0.001,34687.0,34686.0,7.30374141]
[1625554443505,0.001,34687.0,34686.0,7.81712774]
[1625554443806,0.001,34687.0,34686.0,8.05770318]
[1625554444509,0.001,34687.0,34686.0,6.34640609]
[1625554447062,0.001,34687.0,34686.0,6.00937609]
[1625554450873,0.001,34687.0,34686.0,6.00585306]
[1625554454674,0.001,34687.0,34686.0,6.30466306]
[1625554455325,0.001,34687.0,34686.0,6.60466306]
[1625554456326,0.001,34690.0,34686.0,6.60466306]
[1625554456775,0.001,34690.0,34689.0,4.09195102]
[1625554456875,0.001,34690.0,34689.0,4.20995102]
[1625554457876,0.001,34690.0,34689.0,4.7781019]
[1625554459577,0.38188722,34691.0,34689.0,4.7781019]
[1625554459679,0.9976,34693.0,34689.0,4.7781019]
[1625554459781,0.9976,34693.0,34689.0,4.78162877]
[1625554459879,0.9544,34693.0,34692.0,0.24057544]
[1625554460081,0.9544,34693.0,34692.0,3.93740237]
[1625554461031,0.9544,34693.0,34692.0,4.02390237]
[1625554466393,0.9544,34693.0,34692.0,4.02743013]
[1625554467344,0.9544,34693.0,34692.0,3.94093013]
[1625554467797,0.9544,34693.0,34692.0,2.57756749]
[1625554468397,0.9544,34693.0,34692.0,2.66316749]
[1625554468496,0.9544,34693.0,34692.0,2.57756749]
[1625554469598,0.9544,34693.0,34692.0,2.66516749]
[1625554470700,0.9544,34693.0,34692.0,2.57756749]
[1625554470950,0.96868673,34693.0,34692.0,2.57756749]
[1625554471152,0.9544,34693.0,34692.0,2.57756749]
[1625554471464,0.96868667,34693.0,34692.0,2.57756749]
[1625554471703,0.9544,34693.0,34692.0,2.66456749]
[1625554471804,0.9544,34693.0,34692.0,2.57756749]
[1625554471954,0.96868673,34693.0,34692.0,2.57756749]
[1625554472754,0.96868673,34693.0,34692.0,2.66316749]
[1625554472853,0.96868673,34693.0,34692.0,2.95124749]
[1625554474209,0.96868673,34693.0,34692.0,2.86564749]
[1625554475408,0.96868673,34693.0,34692.0,2.57756749]
[1625554475961,0.96868673,34693.0,34692.0,2.66386749]
[1625554476258,0.96868673,34693.0,34692.0,0.3621032]
[1625554476713,0.96868673,34693.0,34692.0,2.5751343]
[1625554477212,0.96868673,34693.0,34692.0,2.5161343]
[1625554477312,1.27604673,34693.0,34692.0,2.5161343]
[1625554477512,1.27604673,34693.0,34692.0,2.5751343]
[1625554478117,1.27604673,34693.0,34692.0,1.38350217]
[1625554479219,0.96868673,34693.0,34692.0,1.38350217]
[1625554479319,0.96868673,34693.0,34692.0,2.57521304]
[1625554479418,0.9544,34693.0,34692.0,2.57521304]
[1625554479717,0.9544,34693.0,34692.0,2.3346376]
[1625554480269,0.9544,34693.0,34692.0,3.29693936]
[1625554480467,0.96869209,34693.0,34692.0,3.29693936]
[1625554480718,0.9544,34693.0,34692.0,3.29693936]
[1625554481020,0.96869217,34693.0,34692.0,3.29693936]
[1625554486683,0.96869217,34693.0,34692.0,2.10522849]
[1625554487088,0.96869217,34693.0,34692.0,3.29752594]
[1625554487285,0.96869217,34693.0,34692.0,3.17952594]
[1625554487486,0.96869217,34693.0,34692.0,3.23852594]
[1625554487587,1.02769217,34693.0,34692.0,3.23852594]
[1625554487887,1.02769217,34693.0,34692.0,3.17952594]
[1625554487988,2.04122015,34693.0,34692.0,0.96582952]
[1625554488287,2.04122015,34693.0,34692.0,0.96230176]
[1625554488944,3.16437727,34693.0,34692.0,0.96230176]
[1625554489043,3.16437727,34693.0,34692.0,1.02130176]
[1625554489141,3.16437727,34693.0,34692.0,1.02483029]
[1625554489241,1.98222015,34693.0,34692.0,1.02483029]
[1625554491195,1.98222015,34693.0,34692.0,2.04745557]
[1625554491898,1.98222015,34693.0,34692.0,1.02483029]
[1625554492800,1.98222015,34693.0,34692.0,2.04780037]
[1625554494306,3.16614102,34693.0,34692.0,2.04780037]
[1625554495107,3.16614102,34693.0,34692.0,2.13400037]
[1625554495958,3.16614102,34693.0,34692.0,2.19300037]
[1625554496859,3.16614102,34693.0,34692.0,2.42001037]
[1625554497412,1.98222015,34693.0,34692.0,4.97980128]
[1625554497814,0.96869217,34693.0,34692.0,4.97980128]
[1625554499570,0.96029217,34693.0,34692.0,4.97980128]
[1625554499723,0.946,34693.0,34692.0,4.97980128]
[1625554500021,0.96028756,34693.0,34692.0,4.97980128]
[1625554500325,1.97937494,34693.0,34692.0,6.51833551]
[1625554501876,1.97937494,34693.0,34692.0,4.89360128]
[1625554501877,3.47930476,34693.0,34692.0,4.89360128]
[1625554501979,3.47930476,34693.0,34692.0,4.83460128]
[1625554502478,5.51478745,34693.0,34692.0,3.9262279]
[1625554502932,5.51478745,34693.0,34692.0,3.92269937]
[1625554503280,5.51478745,34693.0,34692.0,3.92622826]
[1625554503782,5.51478745,34693.0,34692.0,3.92269937]
[1625554504090,5.51478745,34693.0,34692.0,2.20909141]
[1625554504191,5.51478745,34693.0,34692.0,1.01452232]
[1625554504193,7.09806174,34693.0,34692.0,1.01452232]
[1625554504287,7.09806174,34693.0,34689.0,1.07875482]
[1625554504436,0.72172632,34690.0,34689.0,1.07875482]
[1625554504534,0.78072632,34690.0,34689.0,1.07875482]
[1625554504637,0.78072632,34690.0,34683.0,1.53868688]
[1625554504733,0.057,34689.0,34683.0,1.53868688]
[1625554504833,0.175,34689.0,34683.0,1.53868688]
[1625554505033,0.01429113,34688.0,34685.0,0.00352895]
[1625554505187,0.07329113,34688.0,34685.0,0.00352895]
[1625554505586,0.01429129,34687.0,34681.0,1.53885428]
[1625554505684,0.07329129,34687.0,34681.0,1.53885428]
[1625554505785,0.07329129,34687.0,34679.0,1.78246305]
[1625554505883,0.13029129,34687.0,34679.0,1.78246305]
[1625554506134,0.01429143,34686.0,34679.0,1.78246305]
[1625554506235,0.31583143,34686.0,34679.0,1.78246305]
[1625554506436,0.24057544,34685.0,34679.0,1.78246305]
[1625554506637,0.2548666,34685.0,34679.0,1.78246305]
[1625554506736,0.3138666,34685.0,34679.0,1.78246305]
[1625554507739,0.29957544,34685.0,34679.0,1.78246305]
[1625554508841,0.29957544,34685.0,34679.0,0.24357544]
[1625554509043,0.31386715,34685.0,34679.0,0.24357544]
[1625554509541,0.29957544,34685.0,34679.0,0.24357544]
[1625554510545,0.54015088,34685.0,34679.0,0.24357544]
[1625554511244,0.54015088,34685.0,34679.0,1.77984753]
[1625554511595,0.54015088,34685.0,34679.0,0.24357544]
[1625554511945,0.54015088,34685.0,34679.0,1.77979008]
[1625554512346,0.54015088,34685.0,34679.0,0.24357544]
[1625554517258,0.54015088,34685.0,34681.0,0.001]
[1625554517358,0.54015088,34685.0,34681.0,0.06]
[1625554518561,0.24057544,34682.0,34681.0,0.06]
[1625554518863,0.40953675,34682.0,34681.0,0.06]
[1625554520317,0.24057544,34682.0,34681.0,0.06]
[1625554520869,0.40952027,34682.0,34681.0,0.06]
[1625554522773,0.40952027,34682.0,34681.0,0.001]
[1625554523224,0.29957544,34682.0,34681.0,0.001]
[1625554523326,0.24057544,34682.0,34681.0,0.06]
[1625554523726,0.40951432,34682.0,34681.0,0.06]
[1625554524330,0.49406829,34682.0,34681.0,1.42387721]
[1625554524727,0.49406829,34682.0,34681.0,2.61723109]
[1625554524728,0.24057544,34682.0,34681.0,2.61723109]
[1625554525277,0.50236544,34682.0,34681.0,2.61723109]
[1625554525378,0.6459162,34682.0,34681.0,2.61723109]
[1625554525680,0.6459162,34682.0,34681.0,2.55823109]
[1625554525879,0.73027427,34682.0,34681.0,1.19435388]
[1625554526282,0.73027427,34682.0,34681.0,1.19335388]
[1625554526482,0.56136544,34682.0,34681.0,1.19335388]
[1625554526935,0.50236544,34682.0,34681.0,1.19335388]
[1625554528085,0.50236544,34682.0,34681.0,1.25587916]
[1625554528287,0.50236544,34682.0,34681.0,1.19687916]
[1625554528538,0.67128707,34682.0,34681.0,1.19687916]
[1625554528986,0.67128707,34682.0,34681.0,1.25587916]
[1625554529238,0.67128707,34682.0,34681.0,1.19687916]
[1625554529539,0.50236544,34682.0,34681.0,1.19687916]
[1625554530039,0.51667246,34682.0,34681.0,1.19687916]
[1625554530491,0.51667246,34682.0,34681.0,0.00352528]
[1625554532595,0.51667246,34682.0,34681.0,0.06252528]
[1625554533396,0.51667246,34682.0,34681.0,1.25577505]
[1625554534800,0.51667246,34682.0,34681.0,2.27859002]
[1625554534901,0.25488246,34682.0,34681.0,2.27859002]
[1625554535252,0.42414695,34682.0,34681.0,2.27859002]
[1625554536806,0.25488246,34682.0,34681.0,2.27859002]
[1625554537259,0.42420435,34682.0,34681.0,2.27859002]
[1625554537758,0.25488246,34682.0,34681.0,2.27859002]
[1625554538060,0.25488246,34682.0,34681.0,2.21959002]
[1625554539212,0.25488246,34682.0,34681.0,2.27859002]
[1625554539463,0.25488246,34682.0,34681.0,2.21959002]
[1625554543319,1.27069858,34682.0,34681.0,1.02634025]
[1625554544470,1.25639156,34682.0,34681.0,1.02281497]
[1625554544672,1.27070509,34682.0,34681.0,1.0263387]
[1625554546073,1.27070509,34682.0,34681.0,2.22054884]
[1625554548581,1.32970509,34682.0,34681.0,2.22054884]
[1625554549132,1.32970509,34682.0,34681.0,2.27954884]
[1625554549232,1.32970509,34682.0,34681.0,2.22054884]
[1625554549583,1.32970509,34682.0,34681.0,2.27954884]
[1625554550483,1.83815468,34682.0,34681.0,2.79147604]
[1625554550686,1.83815468,34682.0,34681.0,2.73247604]
[1625554551887,3.02432333,34682.0,34681.0,2.73247604]
[1625554553445,1.83815468,34682.0,34681.0,2.79147604]
[1625554553644,1.83815468,34682.0,34681.0,2.73247604]
[1625554554748,1.83815468,34682.0,34681.0,4.33855253]
[1625554554949,1.77915468,34682.0,34681.0,4.33855253]
[1625554555051,0.76333856,34682.0,34681.0,4.33855253]
[1625554558861,1.78008158,34682.0,34681.0,4.33855253]
[1625554559311,1.76576805,34682.0,34681.0,4.3350288]
[1625554559513,1.78009173,34682.0,34681.0,4.33854985]
[1625554562366,1.78009173,34682.0,34681.0,4.39754985]
[1625554562568,1.78009173,34682.0,34681.0,5.93663993]
[1625554564619,2.45906178,34682.0,34681.0,6.62100961]
[1625554567128,2.4447381,34682.0,34681.0,6.62100961]
[1625554568482,2.45905562,34682.0,34681.0,6.62100961]
[1625554568988,2.4447381,34682.0,34681.0,6.62100961]
[1625554569237,2.45905575,34682.0,34681.0,6.62100961]
[1625554569436,2.45905575,34682.0,34681.0,6.56200961]
[1625554569537,2.4447381,34682.0,34681.0,6.56200961]
[1625554569787,2.45905584,34682.0,34681.0,6.56200961]
[1625554571942,2.45905584,34682.0,34681.0,5.02291953]
[1625554571943,3.64617176,34682.0,34681.0,5.02291953]
[1625554573247,3.64617176,34682.0,34681.0,6.56257788]
[1625554573845,3.64617176,34682.0,34681.0,5.02291953]
[1625554579358,3.97675176,34682.0,34681.0,5.02291953]
[1625554580360,5.33346315,34682.0,34681.0,5.02291953]
[1625554581162,3.97675176,34682.0,34681.0,5.02291953]
[1625554588583,5.33451671,34682.0,34681.0,5.02291953]
[1625554590483,5.33451671,34682.0,34681.0,5.08191953]
[1625554590685,3.97675176,34682.0,34681.0,5.08191953]
[1625554590790,3.64617176,34682.0,34681.0,5.38769953]
[1625554592396,3.64617176,34682.0,34681.0,5.08191953]
[1625554595505,3.90818176,34682.0,34681.0,5.08191953]
[1625554595603,3.90818176,34682.0,34681.0,5.02291953]
[1625554600109,5.26657118,34682.0,34681.0,5.02291953]
[1625554601516,3.90818176,34682.0,34681.0,5.02291953]
[1625554602163,3.90818176,34682.0,34681.0,6.56254226]
[1625554606625,3.64617176,34682.0,34681.0,6.56254226]
[1625554609983,3.64617176,34682.0,34681.0,5.02291953]
[1625554610431,3.64617176,34682.0,34681.0,6.56275469]
[1625554616244,3.40559632,34682.0,34681.0,6.32217925]
[1625554617549,3.8867472,34682.0,34681.0,6.32217925]
[1625554619251,4.1316472,34682.0,34681.0,6.32217925]
[1625554621405,5.48755508,34682.0,34681.0,4.78234409]
[1625554621707,4.1316472,34682.0,34681.0,4.78234409]
[1625554622007,5.48860515,34682.0,34681.0,4.78234409]
[1625554623063,4.1316472,34682.0,34681.0,4.78234409]
[1625554624261,4.1316472,34682.0,34681.0,4.86854409]
[1625554624360,4.1316472,34682.0,34681.0,6.40860125]
[1625554624460,4.1316472,34682.0,34681.0,6.32240125]
[1625554625462,4.1316472,34682.0,34681.0,6.40830125]
[1625554626713,4.1316472,34682.0,34681.0,6.32240125]
[1625554626963,5.49000774,34682.0,34681.0,4.78234409]
[1625554627463,4.1316472,34682.0,34681.0,6.32263358]
[1625554627714,4.1316472,34682.0,34681.0,6.40923358]
[1625554628715,4.1316472,34682.0,34681.0,6.32263358]
[1625554632071,4.1316472,34682.0,34681.0,4.78234409]
[1625554632072,5.49124024,34682.0,34681.0,4.78234409]
[1625554632571,5.49124024,34682.0,34681.0,4.86774409]
[1625554632672,5.49124024,34682.0,34681.0,4.78234409]
[1625554633378,5.55024024,34682.0,34681.0,4.78234409]
[1625554633878,7.11239528,34682.0,34681.0,0.91614304]
[1625554634125,7.17139528,34682.0,34681.0,0.91262199]
[1625554634326,7.17139528,34682.0,34677.0,1.54035839]
[1625554634432,8.88929063,34682.0,34681.0,0.25675643]
[1625554634527,8.83229063,34682.0,34681.0,0.25675643]
[1625554634628,8.81797289,34682.0,34681.0,0.25675643]
[1625554634834,8.81797289,34682.0,34680.0,0.08558495]
[1625554634928,8.83231503,34682.0,34680.0,0.08558495]
[1625554635128,4.57700178,34681.0,34679.0,0.59909515]
[1625554635228,4.65034394,34681.0,34679.0,0.59909515]
[1625554635327,4.70934394,34681.0,34679.0,0.59909515]
[1625554635479,4.70934394,34681.0,34673.0,1.37135925]
[1625554635480,2.89284717,34680.0,34678.0,0.25648597]
[1625554635579,3.01084717,34680.0,34678.0,0.25648597]
[1625554635685,0.24057544,34679.0,34678.0,0.25648597]
[1625554635778,0.25492117,34679.0,34678.0,0.25648597]
[1625554635882,3.19229687,34679.0,34678.0,0.25648597]
[1625554636181,3.19229687,34679.0,34678.0,0.08549532]
[1625554636582,3.19229687,34679.0,34678.0,0.25647894]
[1625554637435,3.19229687,34679.0,34678.0,0.59844684]
[1625554637834,3.19229687,34679.0,34677.0,0.59912642]
[1625554638136,2.89299547,34678.0,34677.0,0.59912642]
[1625554638236,2.95199547,34678.0,34677.0,0.59912642]
[1625554639139,2.95199547,34678.0,34677.0,0.25733989]
[1625554639540,2.95199547,34678.0,34677.0,0.001]
[1625554639690,3.19257091,34678.0,34677.0,0.001]
[1625554639893,3.19257091,34678.0,34677.0,0.08640402]
[1625554641048,3.19257091,34678.0,34677.0,0.001]
[1625554642548,3.13357091,34678.0,34677.0,0.001]
[1625554642648,3.17822524,34678.0,34677.0,0.001]
[1625554642749,3.17822524,34678.0,34677.0,0.25709002]
[1625554643249,1.65424413,34678.0,34677.0,0.59854012]
[1625554643799,1.65424413,34678.0,34677.0,0.3424501]
[1625554645359,1.59524413,34678.0,34677.0,0.6861801]
[1625554645458,1.59524413,34678.0,34677.0,0.34473]
[1625554645704,1.59524413,34678.0,34677.0,0.58530544]
[1625554646260,1.65424413,34678.0,34677.0,0.58430544]
[1625554647105,0.29957544,34678.0,34677.0,0.58430544]
[1625554648107,0.24057544,34678.0,34677.0,0.58430544]
[1625554648309,0.24057544,34678.0,34677.0,0.64330544]
[1625554648509,0.24057544,34678.0,34677.0,0.64682222]
[1625554648763,0.24057544,34678.0,34677.0,2.01209215]
[1625554651319,0.24057544,34678.0,34677.0,2.09899215]
[1625554651716,0.24057544,34678.0,34677.0,2.01209215]
[1625554653318,0.24057544,34678.0,34677.0,0.64682222]